Workbook

Sheet Jægersborg - Katalog 19-20
A1: Jægersborg sortiment | Q1: Trykpriser og bemærkninger
Q2: Tryk | R2: Str. CM | S2: Pris | T2: Note | U2: Alternativ
Q3: Tal centreret på bryst | R3: 5 | S3: 25 | T3: pr tal
H4: Entrada T-shirt | Q4: Tal på short | R4: 5 | S4: 25 | T4: pr tal
H5: S | I5: M | J5: L | K5: XL | L5: XXL | Q5: Tal på bukser | R5: 5 | S5: 25 | T5: pr tal
Q6: Initialer - bogstaver | R6: 3.5 | S6: 43.75 | T6: pr linje
D7: Børn/Voksen | E7: Fravælges dele af tryk forbliver | Q7: Tal på ryg | R7: 25 | S7: 31.25 | T7: pr tal | U7: 20 CM hvis ønsket
A8: KONTINGENTPAKKE - Markspiller | D8: 276 | E8: pakkeprisen den samme | H8: 128 | I8: 140 | J8: 152 | K8: 164 | Q8: Navn på ryg | R8: 5 | S8: 43.75 | T8: pr linje
A9: Stylenavn | B9: Dessinnr.: | C9: SDK: | D9: Farve | E9: Enkeltpriser | F9: Uden tryk | H9: Parma Shorts | Q9: Sponsorlogo 1-farvet | R9: max 25*25 | S9: 37.5 | U9: Flere farver - dyrere
A10: Entrada t-shirt | B10: CF1036 | C10: 1581376 | D10: Navy | E10: =150*0.8+25+43.75 -> 188.75 | F10: =150*0.8 -> 120 | H10: S | I10: M | J10: L | K10: XL | L10: XXL | Q10: Sponsorlogo 1-farvet | R10: max 10*10 | S10: 25 | U10: Flere farver - dyrere
A11: Parma shorts | B11: AJ5883 | C11: 1469846 | D11: Navy | E11: =130*0.8+25 -> 129 | F11: =130*0.8 -> 104 | Q11: Klublogo | R11: ca. 10*10 | S11: 25
A12: Milano strømper | B12: AC5262 | C12: 1442186 | D12: Navy | E12: =70*0.8 -> 56 | F12: =70*0.8 -> 56 | Q12: Hvis et sponsor logo har flere farver stiger prisen - spørg efter tilbud
A13: Inkl. klublogo på venstre bryst, samt højre lår og navn på ryg af t-shirt | F13: 276 | H13: 128 | I13: 140 | J13: 152 | K13: 164
A14: Udvidet: Nummer centreret på bryst og/eller ryggen, samt mulighed for nummer på venstre lår over Adidas logo | H14: Milano Strømper | Q14: Tasker:
A15: Udvidet koster ekstra - se pris i oversigten | G15: 27-30 | H15: 31-33 | I15: 34-36 | J15: 37-39 | K15: 40-42 | L15: 43-45 | M15: 46-48 | Q15: Initialer / Navn | R15: 1 | S15: 31.25 | T15: pr linje
Q16: Tal | R16: 5 | S16: 25 | T16: pr tal
H17: Assista trøje - Notér farve her: | Q17: Taske: Efternavn, fornavn eller kaldenavn - dette er op til den årgangsansvarlige.
D18: Børn/Voksen | E18: Fravælges dele af tryk forbliver | H18: S | I18: M | J18: L | K18: XL | L18: XXL | Q18: Alle udvidede versioner koster ekstra, da der påføres ekstra tryk.
A19: KONTINGENTPAKKE - Målmand | D19: 376 | E19: pakkeprisen den samme | Q19: Enkelte modeller eksisterer også i XXXL, så spørg ind hvis behovet melder sig.
A20: Stylenavn | B20: Dessinnr.: | C20: SDK: | D20: Farve | E20: Enkeltpriser | F20: Uden tryk
A21: Assita trøje | B21: AZ5399 | C21: 1494821 | D21: Blå | E21: =280*0.8+25+43.75 -> 292.75 | F21: =280*0.8 -> 224 | H21: 128 | I21: 140 | J21: 152 | K21: 164 | Q21: Alle grønne priser er sætpriser inkl. standard tryk.
A22: Assita trøje | B22: AZ5400 | C22: 1494822 | D22: Grøn | E22: =280*0.8+25+43.75 -> 292.75 | F22: =280*0.8 -> 224 | H22: Parma Shorts
A23: Assita trøje | B23: AZ5398 | C23: 1494820 | D23: Orange | E23: =280*0.8+25+43.75 -> 292.75 | F23: =280*0.8 -> 224 | H23: S | I23: M | J23: L | K23: XL | L23: XXL | Q23: Alle gule priser er enkeltpriser for tøjet inkl. standard tryk.
A24: Parma shorts | B24: AJ5883 | C24: 1469846 | D24: Navy | E24: =130*0.8+25 -> 129 | F24: =130*0.8 -> 104 | Q24: Priser er generelt beregnet ud fra anvendelsen af 2 cifre ved tryk af tal.
A25: Milano strømper | B25: AC5262 | C25: 1442186 | D25: Navy | E25: =70*0.8 -> 56 | F25: =70*0.8 -> 56 | Q25: Derfor vil der i nogle tilfælde blive faktureret mindre end påført her.
A26: Inkl. klublogo på venstre bryst, samt højre lår og navn på ryg af t-shirt | F26: 376 | H26: 128 | I26: 140 | J26: 152 | K26: 164
A27: Udvidet: Nummer centreret på bryst og/eller ryggen, samt mulighed for nummer på venstre lår over Adidas logo | H27: Milano Strømper | Q27: Sætpris uden tryk
A28: Udvidet koster ekstra - se pris i oversigten | G28: 27-30 | H28: 31-33 | I28: 34-36 | J28: 37-39 | K28: 40-42 | L28: 43-45 | M28: 46-48
B30: Børn | D30: Voksen | E30: Fravælges dele af tryk forbliver | H30: Tabela T-shirt
A31: TILKØBSPAKKE | B31: =(200+170+120+250+200+280)*0.75+25+31.25+31.25+25+25+25+25+25+25+25+25+31.25+25+25+43.75 -> 1327.5 | D31: =(200+170+120+280+250+280)*0.75+25+31.25+31.25+25+25+25+25+25+25+25+25+31.25+25+25+43.75 -> 1387.5 | E31: pakkeprisen den samme | H31: S | I31: M | J31: L | K31: XL | L31: XXL
A32: Stylenavn | B32: Dessinnr.: | C32: SDK: | D32: Farve | E32: Enkeltpriser | F32: Uden tryk
A33: Tabela t-shirt | B33: CE8936 | C33: 1581826 | D33: Blå | E33: =200*0.8+25+31.25+31.25+43.75 -> 291.25 | F33: =200*0.8 -> 160
A34: Squadra shorts | B34: BJ9227 | C34: 1492318 | D34: Hvid | E34: =170*0.8+25 -> 161 | F34: =170*0.8 -> 136 | H34: 128 | I34: 140 | J34: 152 | K34: 164
A35: Adisock | B35: CF3578 | C35: 2001463 | D35: Blå | E35: =120*0.8 -> 96 | F35: =120*0.8 -> 96
A36: Core tr. Top - voksen | B36: CE9026 | C36: 1582899 | D36: Sort | E36: =280*0.8+25+25+25 -> 299 | F36: =280*0.8 -> 224 | H36: Squadra Short
A37: Core tr. Top - børn | B37: CE9028 | C37: 1581843 | D37: Sort | E37: =250*0.8+25+25+25 -> 275 | F37: =250*0.8 -> 200 | H37: S | I37: M | J37: L | K37: XL | L37: XXL
A38: Core tr. Buks - voksen | B38: CE9036 | C38: 1581848 | D38: Sort | E38: =250*0.8+25+25+25 -> 275 | F38: =250*0.8 -> 200
A39: Core tr. Buks - børn | B39: CE9034 | C39: 1581847 | D39: Sort | E39: =200*0.8+25+25+25 -> 235 | F39: =200*0.8 -> 160
A40: Tiro Taske (M) | B40: DQ1075 | C40: 2082876 | D40: Sort | E40: =280*0.8+25+31.25+25+25 -> 330.25 | F40: =280*0.8 -> 224 | H40: 128 | I40: 140 | J40: 152 | K40: 164
A41: Tee: Klublogo på venstre bryst samt navn og nummer på ryg. | E41: Voksen u. tryk | F41: =F33+F34+F35+F36+F38+F40 -> 1040
A42: Shorts: Klublogo på venstre lår | E42: Børn u. tryk | F42: =F33+F34+F35+F37+F39+F40 -> 976 | H42: Adisok Strømper
A43: Udvidet: Tal på højre lår - koster ekstra - se pris i oversigten | G43: 27-30 | H43: 31-33 | I43: 34-36 | J43: 37-39 | K43: 40-42 | L43: 43-45 | M43: 46-48
A44: Midlayer: Klublogo på venstre bryst, nummer center bryst
A45: Udvidet: navn på ryg - koster ekstra - se pris i oversigten | H45: Core tr. Top
A46: Buks: Klublogo på venstre lår, nummer på højre lår | H46: S | I46: M | J46: L | K46: XL | L46: XXL
A47: Taske: Klublogo + navn på langside - 5CM nummer på låget
H49: 128 | I49: 140 | J49: 152 | K49: 164
H50: Core tr. Buks
H51: S | I51: M | J51: L | K51: XL | L51: XXL
H54: 128 | I54: 140 | J54: 152 | K54: 164
H55: Taske - M
J56: M
D58: Børn/Voksen | E58: Fravælges dele af tryk forbliver | H58: Tabela T-shirt
A59: Kampsæt - Hjemme | D59: 485 | E59: pakkeprisen den samme | H59: S | I59: M | J59: L | K59: XL | L59: XXL
A60: Stylenavn | B60: Dessinnr.: | C60: SDK: | D60: Farve | E60: Enkeltpriser | F60: Uden tryk
A61: Tabela t-shirt | B61: CE8936 | C61: 1581826 | D61: Blå | E61: =200*0.8+25+31.25+31.25+43.75 -> 291.25 | F61: =200*0.8 -> 160
A62: Squadra shorts | B62: BJ9227 | C62: 1492318 | D62: Hvid | E62: =170*0.8+25 -> 161 | F62: =170*0.8 -> 136 | H62: 128 | I62: 140 | J62: 152 | K62: 164
A63: Adisock strømper | B63: CF3578 | C63: 2001463 | D63: Blå | E63: =120*0.8 -> 96 | F63: =120*0.8 -> 96 | H63: Squadra Short
A64: Tee: Klublogo på venstre bryst samt navn og nummer på ryg. | F64: =SUM(F61:F63) -> 392 | H64: S | I64: M | J64: L | K64: XL | L64: XXL
A65: Shorts: Klublogo på venstre lår
A66: Udvidet: Tal på højre lår - koster ekstra - se pris i oversigten
H67: 128 | I67: 140 | J67: 152 | K67: 164
H68: Adisok Strømper
G69: 27-30 | H69: 31-33 | I69: 34-36 | J69: 37-39 | K69: 40-42 | L69: 43-45 | M69: 46-48
D71: Børn/Voksen | E71: Fravælges dele af tryk forbliver | H71: Tabela T-shirt
A72: Kampsæt - Ude | D72: 485 | E72: pakkeprisen den samme | H72: S | I72: M | J72: L | K72: XL | L72: XXL
A73: Stylenavn | B73: Dessinnr.: | C73: SDK: | D73: Farve | E73: Enkeltpriser | F73: Uden tryk
A74: Tabela t-shirt | B74: CE8935 | C74: 1581825 | D74: Rød | E74: =200*0.8+25+31.25+31.25+43.75 -> 291.25 | F74: =200*0.8 -> 160
A75: Squadra shorts | B75: BJ9226 | C75: 1492317 | D75: Rød | E75: =170*0.8+25 -> 161 | F75: =170*0.8 -> 136 | H75: 128 | I75: 140 | J75: 152 | K75: 164
A76: Adisock strømper | B76: CF3577 | C76: 2001462 | D76: Rød | E76: =120*0.8 -> 96 | F76: =120*0.8 -> 96 | H76: Squadra Short
A77: Tee: Klublogo på venstre bryst samt navn og nummer på ryg. | F77: =SUM(F74:F76) -> 392 | H77: S | I77: M | J77: L | K77: XL | L77: XXL
A78: Shorts: Klublogo på venstre lår
A79: Udvidet: Tal på højre lår - koster ekstra - se pris i oversigten
H80: 128 | I80: 140 | J80: 152 | K80: 164
H81: Adisok Strømper
G82: 27-30 | H82: 31-33 | I82: 34-36 | J82: 37-39 | K82: 40-42 | L82: 43-45 | M82: 46-48
H84: Assista trøje - Notér farve her:
D85: Børn/Voksen | E85: Fravælges dele af tryk forbliver | H85: S | I85: M | J85: L | K85: XL | L85: XXL
A86: Kampsæt - Målmand | D86: 585 | E86: pakkeprisen den samme
A87: Stylenavn | B87: Dessinnr.: | C87: SDK: | D87: Farve | E87: Enkeltpriser | F87: Uden tryk
A88: Assita trøje | B88: AZ5399 | C88: 1494821 | D88: Blå | E88: =280*0.8+25+43.75+31.25+31.25 -> 355.25 | F88: =280*0.8 -> 224 | H88: 128 | I88: 140 | J88: 152 | K88: 164
A89: Assita trøje | B89: AZ5400 | C89: 1494822 | D89: Grøn | E89: =280*0.8+25+43.75+31.25+31.25 -> 355.25 | F89: =280*0.8 -> 224 | H89: Squadra Shorts
A90: Assita trøje | B90: AZ5398 | C90: 1494820 | D90: Orange | E90: =280*0.8+25+43.75+31.25+31.25 -> 355.25 | F90: =280*0.8 -> 224 | H90: S | I90: M | J90: L | K90: XL | L90: XXL
A91: Squadra shorts | B91: BK4766 | C91: 1495073 | D91: Sort | E91: =170*0.8+25 -> 161 | F91: =170*0.8 -> 136
A92: Adisock strømper | B92: CF3576 | C92: 2001461 | D92: Sort | E92: =120*0.8 -> 96 | F92: =120*0.8 -> 96
A93: Tee: Klublogo på venstre bryst samt navn og nummer på ryg. | F93: =SUM(F90:F92) -> 456 | H93: 128 | I93: 140 | J93: 152 | K93: 164
A94: Shorts: Klublogo på venstre lår | H94: Adisock Strømper
A95: Udvidet: Tal på højre lår - koster ekstra - se pris i oversigten | G95: 27-30 | H95: 31-33 | I95: 34-36 | J95: 37-39 | K95: 40-42 | L95: 43-45 | M95: 46-48
A97: *Trænerpakke trækkes fra Sponsor konto | D97: Voksen | E97: Fravælges dele af tryk forbliver | H97: Core T-shirt | N97: Hue
A98: Trænerpakke | D98: =(2*170+170+70+280+250+350+1200+150+170+170)*0.75+(43.75+25)*2+25+25+43.75+25+25+43.75+25+43.75 -> 2756.25 | E98: pakkeprisen den samme | H98: S | I98: M | J98: L | K98: XL | L98: XXL | N98: OSFY | O98: OSFM | P98: OSFL
A99: Stylenavn | B99: Dessinnr.: | C99: SDK: | D99: Farve | E99: Enkeltpriser | F99: Uden tryk
A100: 2* Core t-shirt | B100: CE9021 | C100: 1581842 | D100: Sort | E100: =2*170*0.8+(43.75+25)*2 -> 409.5 | F100: =2*170*0.8 -> 272 | H100: Core Short | N100: Handsker
A101: Core short | B101: CE9031 | C101: 1581845 | D101: Sort | E101: =170*0.8+25 -> 161 | F101: =170*0.8 -> 136 | H101: S | I101: M | J101: L | K101: XL | L101: XXL | N101: S | O101: M | P101: L
A102: Milano strømper | B102: AJ5904 | C102: 1442187 | D102: Sort | E102: =70*0.8 -> 56 | F102: =70*0.8 -> 56
A103: Core tr. Top - voksen | B103: CE9026 | C103: 1582899 | D103: Sort | E103: =280*0.8+25+43.75 -> 292.75 | F103: =280*0.8 -> 224 | H103: Milano Strømper | N103: Halsedisse
A104: Core tr. Buks - voksen | B104: CE9036 | C104: 1581848 | D104: Sort | E104: =250*0.8+25 -> 225 | F104: =250*0.8 -> 200 | G104: 27-30 | H104: 31-33 | I104: 34-36 | J104: 37-39 | K104: 40-42 | L104: 43-45 | M104: 46-48 | O104: One Size
A105: Core regnjakke | B105: CE9048 | C105: 1582901 | D105: Sort | E105: =350*0.8+25+43.75 -> 348.75 | F105: =350*0.8 -> 280
A106: Condivo vinterjakke | B106: BQ6594 | C106: 1582814 | D106: Sort | E106: =1200*0.8+25+43.75 -> 1028.75 | F106: =1200*0.8 -> 960 | H106: Core Trøje
A107: Hue | B107: DQ1070 | C107: 2082814 | D107: Sort | E107: =150*0.8 -> 120 | F107: =150*0.8 -> 120 | H107: S | I107: M | J107: L | K107: XL | L107: XXL
A108: Handsker | B108: DS8874 | C108: 2084515 | D108: Sort | E108: =170*0.8 -> 136 | F108: =170*0.8 -> 136
A109: Halsedisse | B109: DY1990 | C109: 2110987 | D109: Sort | E109: =170*0.8 -> 136 | F109: =170*0.8 -> 136 | H109: Core Bukser
A110: Tee: Klublogo på venstre bryst og titel på ryg | F110: =SUM(F100:F109) -> 2520 | H110: S | I110: M | J110: L | K110: XL | L110: XXL
A111: Shorts: Klublogo på venstre lår
A112: Midlayer: Klublogo på venstre bryst og titel på ryg | H112: Core Regnjakke
A113: Buks: Klublogo på venstre lår | H113: S | I113: M | J113: L | K113: XL | L113: XXL
A114: Regnjakke: Klublogo på venstre bryst og titel på ryg
A115: Vinterjakke: Klublogo på venstre bryst og titel på ryg | H115: Condivo Vinterjakke
H116: S | I116: M | J116: L | K116: XL | L116: XXL
A118: *Assistent pakke trækkes fra Sponsor konto | D118: Voksen | E118: Fravælges dele af tryk forbliver | H118: Core T-shirt
A119: Assistent trænerpakke | D119: =(2*170+170+70+280+250)*0.75+(43.75+25)*2+25+25+43.75+25 -> 1088.75 | E119: pakkeprisen den samme | H119: S | I119: M | J119: L | K119: XL | L119: XXL
A120: Stylenavn | B120: Dessinnr.: | C120: SDK: | D120: Farve | E120: Enkeltpriser | F120: Uden tryk
A121: 2* Core t-shirt | B121: CE9021 | C121: 1581842 | D121: Sort | E121: =2*170*0.8+(43.75+25)*2 -> 409.5 | F121: =2*170*0.8 -> 272 | H121: Core Short
A122: Core short | B122: CE9031 | C122: 1581845 | D122: Sort | E122: =170*0.8+25 -> 161 | F122: =170*0.8 -> 136 | H122: S | I122: M | J122: L | K122: XL | L122: XXL
A123: Milano strømper | B123: AJ5904 | C123: 1442187 | D123: Sort | E123: =70*0.8 -> 56 | F123: =70*0.8 -> 56
A124: Core tr. Top - voksen | B124: CE9026 | C124: 1582899 | D124: Sort | E124: =280*0.8+25+43.75 -> 292.75 | F124: =280*0.8 -> 224 | H124: Milano Strømper
A125: Core tr. Buks - voksen | B125: CE9036 | C125: 1581848 | D125: Sort | E125: =250*0.8+25 -> 225 | F125: =250*0.8 -> 200 | G125: 27-30 | H125: 31-33 | I125: 34-36 | J125: 37-39 | K125: 40-42 | L125: 43-45
A126: Tee: Klublogo på venstre bryst og titel på ryg | F126: =SUM(F121:F125) -> 888
A127: Shorts: Klublogo på venstre lår | H127: Core Trøje
A128: Midlayer: Klublogo på venstre bryst og titel på ryg | H128: S | I128: M | J128: L | K128: XL | L128: XXL
A129: Buks: Klublogo på venstre lår
H130: Core Bukser
H131: S | I131: M | J131: L | K131: XL | L131: XXL
D133: Pakke | E133: Fravælges dele af tryk forbliver
A134: Frivillig/holdleder/årgangsans. | D134: =(170+220)*0.75+(25+43.75)*2 -> 430 | E134: pakkeprisen den samme | H134: Core T-shirt
A135: Stylenavn | B135: Dessinnr.: | C135: SDK: | D135: Farve | E135: Enkeltpriser | F135: Uden tryk | H135: S | I135: M | J135: L | K135: XL | L135: XXL
A136: Core t-shirt | B136: CE9021 | C136: 1581842 | D136: Sort | E136: =170*0.8+25+43.75 -> 204.75 | F136: =170*0.8 -> 136
A137: Core polo | B137: CE9037 | C137: 1581849 | D137: Sort | E137: =220*0.8+25+43.75 -> 244.75 | F137: =220*0.8 -> 176 | H137: Core Polo
A138: Tee: Klublogo bryst og titel på ryggen | H138: S | I138: M | J138: L | K138: XL | L138: XXL
A139: Polo: Klublogo bryst og titel på ryggen
D140: Pakke
A141: Merchandise | D141: =(50+280+130+280+170+150+170)*0.75 -> 922.5
A142: Stylenavn | B142: Dessinnr.: | C142: SDK: | D142: Farve | E142: Enkeltpriser | H142: One Size
A143: Drikkedunk | B143: S96920 | C143: 1493230 | D143: Sort | E143: =50*0.8 -> 40
A144: Rygsæk | B144: DU1996 | C144: 2085252 | D144: Blå | E144: =280*0.8+25+25+25 -> 299
A145: Tiro Gymbag | B145: DQ1068 | C145: 2082933 | D145: Sort | E145: =130*0.8 -> 104
A146: Tiro Taske (M) | B146: DQ1075 | C146: 2082876 | D146: Sort | E146: =280*0.8+25+31.25+25+25 -> 330.25 | I146: Hue
A147: Halsedisse | B147: DY1990 | C147: 2110987 | D147: Sort | E147: =170*0.8 -> 136 | I147: Youth | J147: M | K147: L
A148: Hue | B148: DQ1070 | C148: 2082814 | D148: Sort | E148: =150*0.8 -> 120
A149: Handsker | B149: DS8874 | C149: 2084515 | D149: Sort | E149: =170*0.8 -> 136 | I149: Handsker
I150: S | J150: M | K150: L
A153: Øvrig Beklædning
A154: Stylenavn | B154: Dessinnr.: | C154: SDK: | D154: Farve | E154: Enkeltpriser | F154: Uden tryk | H154: Tiro Warm Top - Sort
A155: Tiro Warm top - Voksen | B155: DJ2593 | C155: 2082792 | D155: Sort | E155: =530*0.8+25 -> 449 | F155: =530*0.8 -> 424 | H155: S | I155: M | J155: L | K155: XL | L155: XXL
A156: Tiro Warm top - Børn | B156: D95952 | C156: 2082749 | D156: Sort | E156: =450*0.8+25 -> 385 | F156: =450*0.8 -> 360
A157: Tiro Warm top - Voksen | B157: DT5791 | C157: 2084667 | D157: Navy | E157: =530*0.8+25 -> 449 | F157: =530*0.8 -> 424
A158: Tiro Warm top - Børn | B158: DT5282 | C158: 2085358 | D158: Navy | E158: =450*0.8+25 -> 385 | F158: =450*0.8 -> 360 | H158: 116 | I158: 128 | J158: 140 | K158: 152 | L158: 164
H159: Tiro Warm Top - Navy
A160: Core Zip trøje - Voksen | B160: CE9053 | C160: 1581858 | D160: Sort | E160: =220*0.8+25 -> 201 | F160: =220*0.8 -> 176 | H160: S | I160: M | J160: L | K160: XL | L160: XXL
A161: Core Zip trøje - Børn | B161: CE9052 | C161: 1581857 | D161: Sort | E161: =180*0.8+25 -> 169 | F161: =180*0.8 -> 144
A162: Core Zip trøje - Voksen | B162: CV3563 | C162: 1584951 | D162: Navy | E162: =220*0.8+25 -> 201 | F162: =220*0.8 -> 176
A163: Core Zip trøje - Børn | B163: CV3577 | C163: 1584954 | D163: Navy | E163: =180*0.8+25 -> 169 | F163: =180*0.8 -> 144 | H163: 116 | I163: 128 | J163: 140 | K163: 152 | L163: 164
H164: Core Zip Trøje - Sort
A165: Core Hoody - Voksen | B165: CE9068 | C165: 1581867 | D165: Sort | E165: =350*0.8+25 -> 305 | F165: =350*0.8 -> 280 | H165: S | I165: M | J165: L | K165: XL | L165: XXL
A166: Core Hoody - Børn | B166: CE9058 | C166: 1581862 | D166: Sort | E166: =280*0.8+25 -> 249 | F166: =280*0.8 -> 224
A167: Core Hoody - Voksen | B167: CV3332 | C167: 1584928 | D167: Navy | E167: =350*0.8+25 -> 305 | F167: =350*0.8 -> 280
A168: Core Hoody - Børn | B168: CV3430 | C168: 1584933 | D168: Navy | E168: =280*0.8+25 -> 249 | F168: =280*0.8 -> 224 | H168: 116 | I168: 128 | J168: 140 | K168: 152 | L168: 164
H169: Core Zip Trøje - Navy
A170: Core Jakke - Voksen | B170: CE9057 | C170: 1581861 | D170: Sort | E170: =750*0.8+25 -> 625 | F170: =750*0.8 -> 600 | H170: S | I170: M | J170: L | K170: XL | L170: XXL
A171: Core Jakke - Børn | B171: CE9058 | C171: 1581862 | D171: Sort | E171: =650*0.8+25 -> 545 | F171: =650*0.8 -> 520
A172: Alle dele under "Øvrig beklædning" er inklusiv klublogo på bryst
H173: 116 | I173: 128 | J173: 140 | K173: 152 | L173: 164
H174: Core Hoody - Sort
H175: S | I175: M | J175: L | K175: XL | L175: XXL
H178: 116 | I178: 128 | J178: 140 | K178: 152 | L178: 164
H179: Core Hoody - Navy
H180: S | I180: M | J180: L | K180: XL | L180: XXL
H183: 116 | I183: 128 | J183: 140 | K183: 152 | L183: 164
H184: Core Jakke - Sort
H185: S | I185: M | J185: L | K185: XL | L185: XXL
H188: 116 | I188: 128 | J188: 140 | K188: 152 | L188: 164

Sheet Tryk
A1: *Ved bestilling af kontingentsæt eller kampsæt bruges bestillingsark lavet dertil*
A3: Style | B3: STR. | C3: Nummer | D3: Initialer | E3: Navn/Titel på ryg | F3: Navn - STORT | G3: Eventuelle kommentarer
F4: =UPPER(E4) -> 
F5: =UPPER(E5) -> 
F69: =UPPER(E69) -> 
